Cogmind - Beta 15 @@@ ROGUE MODE // 2025.07.16 @ 19:12:47 Player: Cinder Result: Destroyed by C-57 Dissector with Dual-blade Saw Performance ------------- Evolutions (9) 4500 Regions Visited (12) 2400 Robots Destroyed (121) 605 Value Destroyed (4833) 4833 Prototype IDs (5) 100 Alien Tech Used (0) 0 Bonus (266) 266 TOTAL SCORE: 12704 Bonus ------- Pacifist 200 High Alert Combat Kills 66 Cogmind --------- Core Integrity 0/1600 Matter 229/300 Energy 100/100 System Corruption 1% Temperature Cool (0) Movement Core (50) Location -1/Command Parts ------- > --- POWER (2) -------- (None) > --- PROPULSION (9) --- (None) > --- UTILITY (8) ------ (None) > --- WEAPON (6) ------- (None) > --- INVENTORY (5) ---- (None) Peak State ------------ > --- POWER ------------ Backup Power VII > --- PROPULSION ------- Improved Gyrokinetic Inverter Cooled Impulse Thruster Cooled Impulse Thruster Impulse Thruster Array > --- UTILITY ---------- Advanced Cryofiber Web Advanced Terrain Scanner Advanced Terrain Scanner Advanced Terrain Scanner Advanced Terrain Scanner Advanced Targeting Computer Cloaking Device Improved System Shield > --- WEAPON ----------- Enhanced Quantum Rifle Enhanced Hardcell Cannon > --- INVENTORY -------- Backup Power VII Centrium Leg Centrium Leg Centrium Wheel Enhanced Hardcell Cannon [Rating: 110] Favorites ----------- Power Nuclear Core Engine Improved Ion Engine Power Core Nuclear Core Reactor Micro Antimatter Reactor Propulsion Aluminum Leg Treads Light Treads Leg Aluminum Leg Wheel Compact Wheel Hover Unit Improved Gyrokinetic Inverter Flight Unit Cooled Impulse Thruster Utility Large Storage Unit Device Advanced Terrain Scanner Storage Large Storage Unit Processor Target Analyzer Hackware Hacking Suite Protection Improved Medium Armor Plating Weapon Heavy Assault Rifle Energy Gun Shock Rifle Energy Cannon Enhanced Nova Cannon Ballistic Gun Heavy Assault Rifle Ballistic Cannon Gauss Cannon Launcher Improved Grenade Launcher Build | -11 -10 -9 -9 -8 -7 -6 -5 -4 -3 -2 -1 -1 ------- Run | Yrd Mat Mat Sto Mat Fac Fac Fac Fac Res Res Acc Com Slots Evolved 18 | . . 2 . 2 2 2 2 2 2 2 2 . Power 1 | . . . . . . . . . . 1 . . Propulsion 7 | . . 2 . 1 1 . 1 1 . . 1 . Utility 6 | . . . . 1 . 2 1 1 1 . . . Weapon 4 | . . . . . 1 . . . 1 1 1 . Parts Attached 196 | 6 2 7 17 38 46 6 3 27 8 18 12 6 Power 21 | 1 . . 1 3 8 . . 5 . 1 . 2 Engine 5 | 1 . . 1 1 1 . . 1 . . . . Core 12 | . . . . 2 7 . . 2 . . . 1 Reactor 4 | . . . . . . . . 2 . 1 . 1 Propulsion 86 | 2 . 4 10 23 19 1 . 10 2 10 3 2 Treads 20 | . . . 7 10 3 . . . . . . . Leg 43 | 2 . 3 3 10 15 1 . 4 . 3 1 1 Wheel 7 | . . . . 3 1 . . 2 . . 1 . Hover 1 | . . . . . . . . . 1 . . . Flight 15 | . . 1 . . . . . 4 1 7 1 1 Utility 38 | 1 . 2 3 4 1 3 3 4 6 2 8 1 Device 19 | . . . . 2 . . . 2 5 1 8 1 Storage 5 | 1 . 2 . . . 1 . . 1 . . . Processor 7 | . . . . 2 . 1 2 2 . . . . Hackware 2 | . . . . . . 1 . . . 1 . . Protection 5 | . . . 3 . 1 . 1 . . . . . Artifact . | . . . . . . . . . . . . . Weapon 51 | 2 2 1 3 8 18 2 . 8 . 5 1 1 Energy Gun 16 | 2 . . . 1 6 2 . 3 . 1 1 . Energy Cannon 1 | . . . . . . . . . . . . 1 Ballistic Gun 22 | . 2 1 3 5 7 . . 3 . 1 . . Ballistic Cannon 10 | . . . . 2 3 . . 2 . 3 . . Launcher 2 | . . . . . 2 . . . . . . . Special Weapon . | . . . . . . . . . . . . . Impact Weapon . | . . . . . . . . . . . . . Slashing Weapon . | . . . . . . . . . . . . . Piercing Weapon . | . . . . . . . . . . . . . Special Melee Weapon . | . . . . . . . . . . . . . Unidentified Prototypes 5 | . . . . . . . . . 1 3 . 1 Parts Lost 129 | . . 2 6 22 29 . 1 34 2 17 10 6 Power 14 | . . . . 3 4 . . 3 . 1 1 2 Propulsion 57 | . . 1 3 12 12 . . 16 . 8 4 1 Utility 20 | . . . 2 . . . 1 5 2 5 4 1 Weapon 38 | . . 1 1 7 13 . . 10 . 3 1 2 Highest Loss Streak 17 | . . 2 2 10 11 . 1 17 2 7 5 6 To Critical Strikes 1 | . . . . 1 . . . . . . . . Average Backups 10 | 4 7 8 11 14 13 12 14 11 2 4 4 1 Power 1 | . 1 1 1 . 1 1 2 1 . . . . Propulsion 5 | 3 4 5 7 8 6 5 6 3 . 3 2 . Utility 1 | . . . 1 . 2 3 2 . 1 . . . Weapon 2 | . 1 1 2 3 2 1 4 5 . . 1 . Tool/Special . | . . . . . . . . . . . . . Unused Backups 24 | . 5 1 . 1 7 1 . 9 . . . . Power 3 | . . 1 . . . 1 . 1 . . . . Propulsion 12 | . 4 . . . 2 . . 6 . . . . Utility 2 | . . . . . 2 . . . . . . . Weapon 7 | . 1 . . 1 3 . . 2 . . . . Tool/Special . | . . . . . . . . . . . . . Average Slot Usage (%) 78 | . 83 75 96 92 89 81 89 80 34 41 41 11 Engine 2 | . 14 11 11 1 . . . . . . . . Core 3 | . . . . 6 5 6 5 2 . . 3 . Treads 6 | . . . 29 17 2 . . . . . . . Leg 21 | . 28 29 10 17 36 33 35 19 . 3 . 5 Wheel 1 | . . . . 6 . . . 2 . . . . Flight 2 | . . 2 2 . . . . 5 3 11 10 . Device 3 | . . . . 9 . . . 2 18 5 11 1 Storage 6 | . 14 11 11 9 7 6 5 4 . . . . Processor 8 | . . . . 7 14 6 13 17 9 6 2 . Hackware 1 | . . . . . . 5 5 4 . 3 2 . Protection 2 | . . . 8 . . 6 4 3 . . . . Energy Gun 3 | . 3 . . 2 6 7 11 7 . 1 3 . Ballistic Gun 9 | . 23 21 22 10 8 6 5 4 . . . . Ballistic Cannon 2 | . . . . 5 4 . . . . 2 3 1 Peak Build Rating 110 | 6 9 12 14 34 39 50 56 85 52 90 110 52 Average Rating 35 | 4 8 9 12 24 31 41 51 69 40 68 83 26 On Entrance 24 | . 6 9 11 12 24 33 50 55 6 40 55 18 Naked Turns 20 | . . . . . . . . . . . . 20 Heaviest Build 52 | 12 16 31 36 35 51 44 44 52 6 22 30 43 Greatest Support 121 | 20 20 40 80 110 91 96 96 121 12 78 30 60 Greatest Overweight (x) 3 | 1 . 1 1 1 3 . . 2 . 1 1 1 Average Overweight (x) . | . . . . . . . . . . . . . Largest Inventory Capacity 15 | 8 8 15 15 15 15 15 15 15 5 5 5 5 Average Capacity 12 | 7 8 8 13 15 15 15 15 14 5 5 5 5 Most Carried 15 | 6 8 10 15 15 15 15 15 15 5 5 5 3 Average Carried 10 | 4 7 8 11 14 13 12 14 12 2 4 4 1 Final Capacity 15 | 8 8 10 15 15 15 15 15 5 5 5 5 5 Final Carried 15 | 6 8 10 15 15 13 15 14 1 5 5 3 . Class Distribution -------------------- 41% | Mutant 19% | Scavenger-Gunner 19% | Scavenger-Mutant 13% | Gunner 5% | Sprinter Dominant Class ---------------- Mutant | -10/Materials Mutant | -9/Materials Scavenger-Mutant | -9/Storage Scavenger-Mutant | -8/Materials Scavenger-Gunner | -7/Factory Gunner | -6/Factory Scavenger-Gunner | -5/Factory Gunner | -4/Factory Mutant | -3/Research Mutant | -2/Research Sprinter | -1/Access Mutant | -1/Command Resources | -11 -10 -9 -9 -8 -7 -6 -5 -4 -3 -2 -1 -1 ----------- Run | Yrd Mat Mat Sto Mat Fac Fac Fac Fac Res Res Acc Com Matter Collected 3708 | 252 . 285 350 712 1155 205 11 210 110 176 133 109 Remotely . | . . . . . . . . . . . . . Salvage Created 4493 | . . 415 698 880 1350 205 . 586 . 359 . . Parts 227 | . . 22 50 41 69 6 . 29 . 10 . . Haulers Intercepted 2 | . . . . 1 . . . 1 . . . . Recyclers Shooed 5 | . . . 2 . 2 . . . . 1 . . Parts Field Recycled . | . . . . . . . . . . . . . Retrieved Matter . | . . . . . . . . . . . . . Parts Self-Destructed . | . . . . . . . . . . . . . Prevented . | . . . . . . . . . . . . . Kills | -11 -10 -9 -9 -8 -7 -6 -5 -4 -3 -2 -1 -1 ------- Run | Yrd Mat Mat Sto Mat Fac Fac Fac Fac Res Res Acc Com Combat Hostiles Destroyed 106 | . . 11 17 25 32 4 . 11 . 6 . . Melee 1 | . . . 1 . . . . . . . . . Guns 69 | . . 11 16 17 12 4 . 8 . 1 . . Cannons 22 | . . . . 8 7 . . 2 . 5 . . AOE 13 | . . . . . 12 . . 1 . . . . Classes Destroyed 12 | . . 3 . 2 7 . . . . . . . Worker 2 | . . . . . 2 . . . . . . . Builder 7 | . . . . . 6 . . 1 . . . . Tunneler 1 | . . . . . 1 . . . . . . . Hauler 2 | . . . . 1 . . . 1 . . . . Recycler 3 | . . . . . 3 . . . . . . . Swarmer 21 | . . 4 4 8 1 . . 4 . . . . Grunt 59 | . . 6 5 12 21 3 . 6 . 6 . . Brawler 1 | . . . . . 1 . . . . . . . Duelist 1 | . . . . . 1 . . . . . . . Sentry 15 | . . 1 8 3 3 . . . . . . . Hunter 5 | . . . . 2 2 1 . . . . . . Programmer 4 | . . . . . 3 . . 1 . . . . Best Kill Streak 9 | . . 4 4 7 9 2 . 4 . 4 . . Combat Bots Only 7 | . . 4 4 7 5 2 . 4 . 4 . . Max Kills in Single Turn 4 | . . 1 1 1 4 1 . 2 . 1 . . Gunslinging 1 | . . . . . . . . 1 . . . . Exploded 2 | . . . . . 2 . . 1 . . . . Melee 1 | . . . 1 . . . . . . . . . Uniques/NPCs Destroyed . | . . . . . . . . . . . . . Combat | -11 -10 -9 -9 -8 -7 -6 -5 -4 -3 -2 -1 -1 -------- Run | Yrd Mat Mat Sto Mat Fac Fac Fac Fac Res Res Acc Com Hostile Shots Fired 2023 | . 5 87 170 378 501 39 16 327 25 177 176 122 Missed 726 | . 4 20 55 103 159 13 6 131 15 77 95 48 Hits 1297 | . 1 67 115 275 342 26 10 196 10 100 81 74 Melee 13 | . . . . . 1 . . . . . . 12 Projectile 1284 | . 1 67 115 275 341 26 10 196 10 100 81 62 AOE 3 | . . . . . . . . 2 . . . 1 Critical Strikes 48 | . . . 4 11 4 1 1 12 . 5 3 7 Damage Taken 21419 | . 11 703 1325 3528 4497 435 224 4343 227 2315 1782 2029 Core 4481 | . . 97 176 400 500 67 36 911 95 594 660 945 Absorbed by Shields . | . . . . . . . . . . . . . Ignored by Resistances 41 | . . . . . . . . . . . . 41 Regen/Repaired (Parts) 80 | . . . . . . 80 . . . . . . Core Remaining (%) 64 | 100 100 . 31 27 28 92 96 20 92 59 . . Volleys Fired 304 | . . 33 43 84 87 12 . 21 . 18 1 5 Largest 3 | . . 2 2 2 3 3 . 3 . 2 3 2 Hottest 209 | . . 46 46 92 150 163 . 209 . 145 181 178 Shots Fired 646 | . . 66 86 156 211 32 . 56 . 27 3 9 Gun 484 | . . 66 86 116 128 32 . 46 . 9 1 . Cannon 147 | . . . . 40 70 . . 8 . 18 2 9 Launcher 15 | . . . . . 13 . . 2 . . . . Special . | . . . . . . . . . . . . . Kinetic 502 | . . 66 86 132 158 12 . 23 . 19 2 4 Thermal 89 | . . . . 24 . 20 . 31 . 8 1 5 Explosive 15 | . . . . . 13 . . 2 . . . . Electromagnetic 40 | . . . . . 40 . . . . . . . Robot Hit Streak 28 | . . 8 28 12 10 9 . 21 . 26 . 1 Robot Miss Streak 8 | . . 2 2 4 8 3 . 3 . 1 . 8 Penetration Max 1 | . . . . . 1 . . . . . . . Secondary Targets 9 | . . . 2 6 . . . 1 . . . . Max Gunslinging Chain 1 | . . . 1 1 . . . 1 . . . . Shots Hit Robots 454 | . . 45 71 115 140 20 . 37 . 25 . 1 Core Hits 282 | . . 19 29 52 120 13 . 32 . 17 . . Critical Kills 6 | . . . 1 . . 1 . 4 . . . . Critical Parts Destroyed 7 | . . . 1 2 2 . . 2 . . . . Critical Strikes 30 | . . . 2 5 13 2 . 7 . 1 . . Burn 3 | . . . . 1 . 1 . 1 . . . . Destroy 13 | . . . 2 2 2 1 . 6 . . . . Blast 9 | . . . . 2 6 . . . . 1 . . Corrupt 5 | . . . . . 5 . . . . . . . Melee Attacks . | . . . . . . . . . . . . . Impact . | . . . . . . . . . . . . . Slashing . | . . . . . . . . . . . . . Piercing . | . . . . . . . . . . . . . Sneak Attacks . | . . . . . . . . . . . . . Combat Hostiles . | . . . . . . . . . . . . . Follow-up Attacks . | . . . . . . . . . . . . . Damage Inflicted 10770 | . . 693 922 1706 4647 427 . 1355 . 932 6 82 Guns 5480 | . . 683 916 1068 1356 378 . 829 . 250 . . Cannons 2808 | . . . . 625 1221 . . 208 . 674 . 80 Explosions 2272 | . . . . . 1954 . . 318 . . . . Melee . | . . . . . . . . . . . . . Ramming 210 | . . 10 6 13 116 49 . . . 8 6 2 Kinetic 6668 | . . 683 916 1409 2321 190 . 414 . 695 . 40 Thermal 1825 | . . . . 284 461 188 . 623 . 229 . 40 Explosive 1811 | . . . . . 1493 . . 318 . . . . Electromagnetic 256 | . . . . . 256 . . . . . . . Impact . | . . . . . . . . . . . . . Slashing . | . . . . . . . . . . . . . Piercing . | . . . . . . . . . . . . . Highest Corruption 3 | . . . . . 3 . 1 1 . 2 1 1 Average Corruption 1 | . . . . . 1 . 1 1 . 1 1 1 Corruption Purged . | . . . . . . . . . . . . . Corruption Blocked . | . . . . . . . . . . . . . Effects 18 | . . . . . 10 . . 3 . 2 3 . Message Errors 5 | . . . . . 3 . . 1 . 1 . . Matter Fused 4 | . . . . . 2 . . 2 . . . . Heat Flow Errors 3 | . . . . . 1 . . . . . 2 . Energy Discharges 1 | . . . . . 1 . . . . . . . Data Loss (minor) 3 | . . . . . 3 . . . . . . . Data Loss (major) 1 | . . . . . . . . . . . 1 . Misfires 1 | . . . . . . . . . . 1 . . Overload Shots . | . . . . . . . . . . . . . Overflow Damage 376 | . . . . 11 351 . . . . 4 . 10 Projectiles 47 | . . . . 11 22 . . . . 4 . 10 Explosions 329 | . . . . . 329 . . . . . . . Melee . | . . . . . . . . . . . . . Knockbacks 41 | . . . . 13 13 . . . . 14 . 1 Impact . | . . . . . . . . . . . . . Kinetic 36 | . . . . 12 12 . . . . 11 . 1 Secondary 5 | . . . . 1 1 . . . . 3 . . Self-Inflicted Damage 619 | . . . . . 616 . . . . . 3 . Shots 11 | . . . . . 11 . . . . . . . Rammed 10 | . . . 1 . 8 . . . . . 1 . Targets Rammed 35 | . . 1 3 3 17 6 . . . 2 1 2 Kicked 24 | . . 1 2 2 9 6 . . . 2 . 2 Crushed 1 | . . . . 1 . . . . . . . . Highest Temperature 414 | . . 7 30 181 348 289 . 414 . 336 161 178 Average Temperature 87 | . . 3 9 52 82 114 . 157 . 206 59 78 Received Heat Transfer 4587 | . 6 294 450 1188 1392 198 81 582 . 270 117 9 Effects 17 | . . . . . 5 . . 10 . 2 . . Shutdowns 1 | . . . . . . . . 1 . . . . Interference 12 | . . . . . 4 . . 8 . . . . Short Circuit 3 | . . . . . 1 . . 1 . 1 . . Damage (minor) 1 | . . . . . . . . . . 1 . . Siege Activations . | . . . . . . . . . . . . . Martial Activations . | . . . . . . . . . . . . . Shielding Activations . | . . . . . . . . . . . . . Robots Disrupted 1 | . . . . . 1 . . . . . . . Combat Hostiles 1 | . . . . . 1 . . . . . . . Robots Corrupted 2 | . . . . . 2 . . . . . . . Combat Hostiles 1 | . . . . . 1 . . . . . . . Parts Fried 4 | . . . . . 4 . . . . . . . Impact Corruptions 1 | . . . . . 1 . . . . . . . Robots Melted . | . . . . . . . . . . . . . Combat Hostiles . | . . . . . . . . . . . . . Parts Melted 7 | . . . . 3 . 1 . 3 . . . . Heat Transferred 2631 | . . . . 629 300 444 . 925 . 296 . 37 Parts Sabotaged . | . . . . . . . . . . . . . Parts Stolen . | . . . . . . . . . . . . . Parts Stripped . | . . . . . . . . . . . . . Power Chain Reactions 1 | . . . . . 1 . . . . . . . Alert | -11 -10 -9 -9 -8 -7 -6 -5 -4 -3 -2 -1 -1 ------- Run | Yrd Mat Mat Sto Mat Fac Fac Fac Fac Res Res Acc Com Maximum Alert Level 2 | . . . . 1 2 1 . 1 . 1 1 2 Low Security (%) 74 | 100 100 100 100 72 53 75 100 85 100 94 52 . Level 1 17 | . . . . 27 16 24 . 14 . 5 47 99 Level 2 8 | . . . . . 29 . . . . . . . Level 3 . | . . . . . . . . . . . . . Level 4 . | . . . . . . . . . . . . . Level 5 . | . . . . . . . . . . . . . High Security . | . . . . . . . . . . . . . Max Security . | . . . . . . . . . . . . . Peak Influence 511 | . 30 127 147 233 511 247 70 348 150 265 389 391 Initial 247 | . . 12 37 17 94 247 70 . 150 42 140 243 Average 143 | . . 54 74 152 216 182 33 103 83 70 221 257 Influence Increases 5243 | . 30 277 440 773 1241 160 . 844 105 504 581 288 Destroy 0b10 Robot/C 2120 | . . 220 340 500 640 80 . 220 . 120 . . Destroy 0b10 Robot/NC 75 | . . . . 5 60 . . 10 . . . . Destroy Leader 414 | . . 40 100 102 120 20 . 22 . 10 . . Successful Hack 134 | . . . . . 17 29 . 6 . 14 41 27 Disable Machine 255 | . . 15 . . 210 . . 15 . 15 . . Destroy Structure 160 | . . 2 . 1 119 1 . 16 . . . 21 Partial Spotted 60 | . . . . 15 . . . . . 15 30 . Lose Combat Pursuer 2025 | . 30 . . 150 75 30 . 555 105 330 510 240 Influence Decreases 4852 | . . 218 486 607 945 520 145 556 318 344 435 278 Entered New Map 948 | . . 18 52 26 115 258 75 . 138 33 95 138 Time Decay 2608 | . . 180 374 361 540 262 70 206 160 145 230 80 Lost Part 1276 | . . 20 60 220 290 . . 340 20 166 100 60 Lost Ally 20 | . . . . . . . . 10 . . 10 . Squads Dispatched 51 | . 1 1 5 4 15 7 . 5 . 4 6 3 Investigation 14 | . . . 1 1 3 4 . 1 . 1 2 1 Extermination 13 | . . . . . 5 1 . 2 . 1 3 1 Reinforcement 18 | . 1 1 1 3 4 2 . 2 . 2 1 1 Assault . | . . . . . . . . . . . . . Garrison 6 | . . . 3 . 3 . . . . . . . Intercept . | . . . . . . . . . . . . . Searches Triggered . | . . . . . . . . . . . . . Construction Impeded 3 | . . . . . 2 . . 1 . . . . Haulers Reinforced 2 | . . . . . 2 . . . . . . . Active Scanning Responses . | . . . . . . . . . . . . . Cargo Convoy Interrupts . | . . . . . . . . . . . . . Stealth | -11 -10 -9 -9 -8 -7 -6 -5 -4 -3 -2 -1 -1 --------- Run | Yrd Mat Mat Sto Mat Fac Fac Fac Fac Res Res Acc Com Distress Signals 15 | . . 1 2 4 3 . . 1 . 2 1 1 Communications Jammed . | . . . . . . . . . . . . . Distress Signals . | . . . . . . . . . . . . . Times Spotted 325 | . 6 19 27 41 50 9 3 53 10 40 47 20 Peak Tracking Total 25 | . 2 7 6 13 6 3 3 25 5 16 20 12 Tactical Retreats 40 | . 1 . . 5 4 2 . 8 2 4 10 4 Traps | -11 -10 -9 -9 -8 -7 -6 -5 -4 -3 -2 -1 -1 ------- Run | Yrd Mat Mat Sto Mat Fac Fac Fac Fac Res Res Acc Com Traps Triggered 11 | . . . 3 1 4 1 1 . . . . 1 Indirectly . | . . . . . . . . . . . . . Trap Hack Attempts . | . . . . . . . . . . . . . Triggered . | . . . . . . . . . . . . . Disarmed . | . . . . . . . . . . . . . Reprogrammed . | . . . . . . . . . . . . . Reused . | . . . . . . . . . . . . . Traps Extracted . | . . . . . . . . . . . . . Installed . | . . . . . . . . . . . . . Triggered . | . . . . . . . . . . . . . Machines | -11 -10 -9 -9 -8 -7 -6 -5 -4 -3 -2 -1 -1 ---------- Run | Yrd Mat Mat Sto Mat Fac Fac Fac Fac Res Res Acc Com Machines Disabled 17 | . . 1 . . 14 . . 1 . 1 . . Max in Single Turn 12 | . . 1 . . 12 . . 1 . 1 . . Garrison Access 1 | . . . 1 . . . . . . . . . Machines Repaired . | . . . . . . . . . . . . . Machines Dismantled . | . . . . . . . . . . . . . Machines Sabotaged . | . . . . . . . . . . . . . Overloaded Fab Kills . | . . . . . . . . . . . . . Hacking | -11 -10 -9 -9 -8 -7 -6 -5 -4 -3 -2 -1 -1 --------- Run | Yrd Mat Mat Sto Mat Fac Fac Fac Fac Res Res Acc Com Machines Accessed 39 | . . . 5 2 8 10 1 2 2 1 7 1 Terminals 17 | . . . 2 1 5 3 . . . . 5 1 Fabricators 5 | . . . . . . 2 . 1 1 1 . . Repair Stations 4 | . . . 1 . . 2 . . . . 1 . Recycling Units 8 | . . . 1 1 1 3 1 1 . . . . Scanalyzers 2 | . . . . . 2 . . . . . . . Garrison Access 3 | . . . 1 . . . . . 1 . 1 . Total Hacks 92 | . . . 9 4 24 24 2 4 5 2 15 3 Successful 46 | . . . 4 2 15 13 2 1 1 2 5 1 Failed 46 | . . . 5 2 9 11 . 3 4 . 10 2 Catastrophic 5 | . . . . . 2 . . . . . 3 . Database Lockouts . | . . . . . . . . . . . . . Manual . | . . . . . . . . . . . . . Terminals 39 | . . . 3 2 9 10 . . . . 12 3 Fabricators 9 | . . . . . . 3 . 1 3 2 . . Repair Stations 10 | . . . 2 . . 6 . . . . 2 . Recycling Units 15 | . . . 1 2 2 5 2 3 . . . . Scanalyzers 13 | . . . . . 13 . . . . . . . Garrison Access 6 | . . . 3 . . . . . 2 . 1 . Terminal Hacks 13 | . . . 1 . 1 6 . . . . 4 1 Record 3 | . . . . . . 2 . . . . 1 . Open Door 3 | . . . . . . . . . . . 3 . Level Access Points 1 | . . . . . . . . . . . . 1 Locate Traps 2 | . . . . . . 2 . . . . . . Recall Reinforcements 1 | . . . . . 1 . . . . . . . Zone Layout 3 | . . . 1 . . 2 . . . . . . Fabricator Hacks 6 | . . . . . . 2 . 1 1 2 . . Load Schematic 3 | . . . . . . 1 . . 1 1 . . Build 3 | . . . . . . 1 . 1 . 1 . . Repair Station Hacks 5 | . . . 1 . . 3 . . . . 1 . Scan Component 3 | . . . 1 . . 2 . . . . . . Repair 1 | . . . . . . 1 . . . . . . Refit 1 | . . . . . . . . . . . 1 . Recycling Unit Hacks 9 | . . . 1 2 2 2 2 . . . . . Process 4 | . . . . 1 1 1 1 . . . . . Retrieve Matter 5 | . . . 1 1 1 1 1 . . . . . Scanalyzer 12 | . . . . . 12 . . . . . . . Insert Component 6 | . . . . . 6 . . . . . . . Analyze 6 | . . . . . 6 . . . . . . . Garrison Access Hacks 1 | . . . 1 . . . . . . . . . Seal Access 1 | . . . 1 . . . . . . . . . Unauthorized Hacks . | . . . . . . . . . . . . . Terminals . | . . . . . . . . . . . . . Fabricators . | . . . . . . . . . . . . . Repair Stations . | . . . . . . . . . . . . . Recycling Units . | . . . . . . . . . . . . . Scanalyzers . | . . . . . . . . . . . . . Garrison Access . | . . . . . . . . . . . . . Data Cores Recovered . | . . . . . . . . . . . . . Used . | . . . . . . . . . . . . . Hacking Detections 30 | . . . 4 1 6 10 . 1 2 1 4 1 Full Trace Events 10 | . . . 1 . 1 3 . 1 . 1 2 1 Feedback Events . | . . . . . . . . . . . . . Feedback Blocked . | . . . . . . . . . . . . . Robot Schematics Acquired . | . . . . . . . . . . . . . Robots Built 1 | . . . . . . . . 1 . . . . Authchips . | . . . . . . . . . . . . . Time 187 | . . . . . . . . 187 . . . . Total Robot Build Rating 7 | . . . . . . . . 7 . . . . Part Schematics Acquired 5 | . . . . . 5 . . . . . . . Parts Built 4 | . . . . . . 2 . . . 2 . . Authchips . | . . . . . . . . . . . . . Time 72 | . . . . . . 36 . . . 36 . . Total Part Build Rating 12 | . . . . . . 6 . . . 6 . . Parts Repaired 1 | . . . . . . 1 . . . . . . Time 53 | . . . . . . 53 . . . . . . Parts Recycled . | . . . . . . . . . . . . . Recycled Matter 64 | . . . . 35 26 . 3 . . . . . Retrieved Matter 159 | . . . 95 35 26 . 3 . . . . . Retrieved Components . | . . . . . . . . . . . . . Parts Scanalyzed 6 | . . . . . 6 . . . . . . . Part Schematics Acquired 5 | . . . . . 5 . . . . . . . Parts Damaged 1 | . . . . . 1 . . . . . . . Bothacking | -11 -10 -9 -9 -8 -7 -6 -5 -4 -3 -2 -1 -1 ------------ Run | Yrd Mat Mat Sto Mat Fac Fac Fac Fac Res Res Acc Com Used RIF Installer . | . . . . . . . . . . . . . Robots Hacked . | . . . . . . . . . . . . . Non-combat . | . . . . . . . . . . . . . Combat . | . . . . . . . . . . . . . Robot Hacks Applied . | . . . . . . . . . . . . . Relay Couplers Released . | . . . . . . . . . . . . . Fabnet Peak Effective % . | . . . . . . . . . . . . . Robots Rewired . | . . . . . . . . . . . . . Allies Hacked . | . . . . . . . . . . . . . Hacks Repelled . | . . . . . . . . . . . . . Allies | -11 -10 -9 -9 -8 -7 -6 -5 -4 -3 -2 -1 -1 -------- Run | Yrd Mat Mat Sto Mat Fac Fac Fac Fac Res Res Acc Com Total Allies 1 | . . . . . . . . 1 . . . . Largest Group 1 | . . . . . . . . 1 . . . . Highest-Rated Group 33 | . . . . . . . . 33 . . . . Highest-Rated Ally 33 | . . . . . . . . 33 . . . . Total Orders . | . . . . . . . . . . . . . Ally Attacks . | . . . . . . . . . . . . . Total Damage . | . . . . . . . . . . . . . Kills . | . . . . . . . . . . . . . Allies Corrupted . | . . . . . . . . . . . . . Allies Melted . | . . . . . . . . . . . . . Intel | -11 -10 -9 -9 -8 -7 -6 -5 -4 -3 -2 -1 -1 ------- Run | Yrd Mat Mat Sto Mat Fac Fac Fac Fac Res Res Acc Com Active Infowar (turns) 602 | . . . . . . . . 141 214 . 247 . Sensors 214 | . . . . . . . . . 214 . . . Terrain 140 | . . . . . . . . . . . 140 . Machine Analysis 141 | . . . . . . . . 141 . . . . Cloaking 108 | . . . . . . . . . . . 108 . Jamming 1 | . . . . . . . . . 1 . . . Robot Analysis Total . | . . . . . . . . . . . . . Derelict Logs Recovered . | . . . . . . . . . . . . . Drone Launches 1 | . . . . . . . . . . . 1 . Drone Recoveries . | . . . . . . . . . . . . . Exploration | -11 -10 -9 -9 -8 -7 -6 -5 -4 -3 -2 -1 -1 ------------- Run | Yrd Mat Mat Sto Mat Fac Fac Fac Fac Res Res Acc Com Turns Passed 7172 | 69 257 402 878 978 1972 568 167 581 320 327 488 165 Spaces Moved 5490 | 49 124 200 413 499 1174 390 133 559 330 479 946 194 Core 258 | 12 . . . . . . . 36 69 . 47 94 Treads 502 | . . . 345 97 60 . . . . . . . Legs 2587 | 37 124 200 68 234 1095 390 133 172 . 64 . 70 Wheels 284 | . . . . 168 19 . . 97 . . . . Hover 12 | . . . . . . . . . 2 2 8 . Flight 1847 | . . . . . . . . 254 259 413 891 30 Fastest Speed 20 | 50 120 120 120 96 110 123 123 34 40 24 32 20 Average Speed 92 | 110 120 120 154 119 125 124 123 76 42 47 35 70 Slowest Speed 270 | 120 120 190 240 225 250 125 123 270 70 120 119 120 Overloaded Moves . | . . . . . . . . . . . . . Propulsion Burnouts . | . . . . . . . . . . . . . Robots Hopped 31 | . . . . . . . . 8 . 9 13 1 Potential Cave-ins . | . . . . . . . . . . . . . Cave-ins Triggered . | . . . . . . . . . . . . . Exploration Rate (%) 23 | 4 21 28 63 36 33 14 6 22 11 13 34 14 Regions Visited 12 Branch Regions 2 Pre-discovered Areas . | . . . . . . . . . . . . . Known Exits Taken 1 | . . . . 1 . . . . . . . . Unknown Exits Taken 11 | 1 1 1 1 . 1 1 1 1 1 1 1 . Scrap Searched . | . . . . . . . . . . . . . Spaces Dug . | . . . . . . . . . . . . . Terrain Destroyed 144 | . . . . . 129 . . 8 . . . 7 Melee . | . . . . . . . . . . . . . Projectile 27 | . . . . . 18 . . 2 . . . 7 AOE 117 | . . . . . 111 . . 6 . . . . Terrain Rammed . | . . . . . . . . . . . . . Walls Destroyed . | . . . . . . . . . . . . . Machines Disabled . | . . . . . . . . . . . . . Actions | -11 -10 -9 -9 -8 -7 -6 -5 -4 -3 -2 -1 -1 --------- Run | Yrd Mat Mat Sto Mat Fac Fac Fac Fac Res Res Acc Com Total 6960 | 61 237 294 567 732 1488 445 136 662 506 537 1086 209 Wait 722 | . 90 48 73 53 97 21 . 30 165 19 126 . Move 5418 | 48 123 199 412 498 1173 389 132 543 329 461 919 192 Hop 29 | . . . . . . . . 7 . 8 13 1 Pick Up 95 | 7 11 2 3 22 24 6 1 12 3 3 1 . Fast Attach 105 | 5 . 5 12 15 18 5 . 7 8 16 10 4 Attach 80 | 1 2 1 1 20 22 2 2 17 . 4 4 4 Detach 32 | . 2 2 3 6 7 1 . 4 1 3 2 1 Swap 44 | . . 1 9 13 14 . 1 6 . . . . Drop 93 | . 9 2 8 18 26 3 . 15 . 3 9 . Fire 304 | . . 33 43 84 87 12 . 21 . 18 1 5 Melee . | . . . . . . . . . . . . . Ram 1 | . . . . . . . . . . . 1 . Kick 24 | . . 1 2 2 9 6 . . . 2 . 2 Crush 10 | . . . 1 1 8 . . . . . . . Escape Stasis . | . . . . . . . . . . . . . Rewire 3 | . . . . . 3 . . . . . . . Trap . | . . . . . . . . . . . . . Miscellaneous . | . . . . . . . . . . . . . Route ------- -11/Scrapyard -10/Materials -9/Materials -9/Storage -8/Materials -7/Factory (discovered 2 exits: *Fac / *Low) -6/Factory -5/Factory -4/Factory -3/Research -2/Research -1/Access -1/Command (discovered 2 exits: Sur x2) History --------- Turn | Location | Event 13 | -11/Scrapyard | Discovered new exit (range 15) 70 | -11/Scrapyard | Entered Materials 310 | -10/Materials | Build established: Mutant 322 | -10/Materials | Discovered new exit (range 4) 327 | -10/Materials | Entered another Materials area 327 | -9/Materials | Evolved 2 slots: Propulsion x2 713 | -9/Materials | Discovered new exit (range 14) 729 | -9/Materials | Entered Storage 1153 | -9/Storage | Build established: Scavenger-Mutant 1404 | -9/Storage | Core integrity fell below 50% 1579 | -9/Storage | Discovered new exit (range 16) 1607 | -9/Storage | Entered Materials 1607 | -8/Materials | Evolved 2 slots: Propulsion x1, Utility x1 1806 | -8/Materials | Lost 9 parts (1p5n3w) 1817 | -8/Materials | Destroyed 7 combat bots 2031 | -8/Materials | Core integrity fell below 50% 2084 | -8/Materials | Lost 10 parts (2p5n3w) 2167 | -8/Materials | Build established: Mutant 2551 | -8/Materials | Discovered new exit (range 5) 2554 | -8/Materials | Identified exit to Factory 2585 | -8/Materials | Entered Factory 2585 | -7/Factory | Evolved 2 slots: Propulsion x1, Weapon x1 2874 | -7/Factory | Build established: Scavenger-Gunner 3024 | -7/Factory | Discovered new exit (range 13) 3037 | -7/Factory | Identified exit to Lower Caves 3495 | -7/Factory | Garrison activated, responded to threat 3599 | -7/Factory | Lost 11 parts (2p6n3w) 3664 | -7/Factory | Lost 4 parts (3n1w) 3791 | -7/Factory | Core integrity fell below 50% 4000 | -7/Factory | Lost 5 parts (1p1n3w) 4296 | -7/Factory | Build established: Gunner 4437 | -7/Factory | Lost 3 parts (1n2w) 4528 | -7/Factory | Lost 3 parts (1p2w) 4538 | -7/Factory | Discovered new exit (range 6) 4557 | -7/Factory | Entered another Factory area 4557 | -6/Factory | Evolved 2 slots: Utility x2 4692 | -6/Factory | Build established: Mutant 4734 | -6/Factory | Fabricated Adv. Treads? 5019 | -6/Factory | Repaired Broken Carbon-fiber Leg 5104 | -6/Factory | Discovered new exit (range 15) 5125 | -6/Factory | Entered another Factory area 5125 | -5/Factory | Evolved 2 slots: Propulsion x1, Utility x1 5274 | -5/Factory | Discovered new exit (range 14) 5292 | -5/Factory | Entered another Factory area 5292 | -4/Factory | Evolved 2 slots: Propulsion x1, Utility x1 5504 | -4/Factory | Lost 3 parts (3n) 5513 | -4/Factory | Fabricated M-30 Cleanser (x1) 5561 | -4/Factory | Build established: Gunner 5763 | -4/Factory | Lost 13 parts (1p7n1u4w) 5847 | -4/Factory | Core integrity fell below 50% 5867 | -4/Factory | Discovered new exit (range 12) 5873 | -4/Factory | Entered Research 5873 | -3/Research | Evolved 2 slots: Utility x1, Weapon x1 5893 | -3/Research | Lost 17 parts (2p5n4u6w) 6000 | -3/Research | Build established: Mutant 6187 | -3/Research | Discovered new exit (range 15) 6193 | -3/Research | Entered another Research area 6193 | -2/Research | Evolved 2 slots: Power x1, Weapon x1 6284 | -2/Research | Fabricated Imp. Sensor Array? 6338 | -2/Research | Lost 5 parts (3n2u) 6430 | -2/Research | Lost 7 parts (3n2u2w) 6465 | -2/Research | Lost 3 parts (1p1n1u) 6511 | -2/Research | Discovered new exit (range 15) 6520 | -2/Research | Entered Access 6520 | -1/Access | Evolved 2 slots: Propulsion x1, Weapon x1 6824 | -1/Access | Spotted B-99 Colossus 6852 | -1/Access | Lost 5 parts (1n4u) 6858 | -1/Access | Spotted B-99 Colossus 7005 | -1/Access | Discovered new exit (range 7) 7008 | -1/Access | Entered Command 7012 | -1/Command | Lost 5 parts (1p3n1w) 7054 | -1/Command | Identified exit to Surface 7095 | -1/Command | Core integrity fell below 50% 7158 | -1/Command | Core integrity fell below 20% 7173 | -1/Command | Destroyed by C-57 Dissector with Dual-blade Saw Last Messages --------------- 07140_ S-43 Plague destroyed. 07141_ Centrium Leg severed. 07142_ K-01 Serf collects debris. 07145_ Centrium Wheel severed. 07146_ K-01 Serf collects debris. 07146_ Backup Power VII severed. 07146_ Backup Power VII disintegrated. 07157_ Acquired Prototype Flight Unit. 07157_ Identified Exp. Q-thruster. 07164_ Exp. Q-thruster severed. 07166_ S-43 Plague suffers critical hit (Destroy). 07168_ Triggered Hellfire Trap. 07168_ An explosion rips through the floor. 07169_ The unstable cave ceiling collapses. 07171_ K-01 Serf collects debris. 07172_ K-01 Serf cleans the Repair Station. 07173_ ALERT: Potential suspicious activity detected, Programmers report to Command Zone 5A. Map ----- +----------------------------------------------------+ | ?????????????????????????????????????????????????? | | ?????????????????????????????????????????????????? | | ?????????????????????????????????????????????????? | | ?????????????????????????????????????????????????? | | ?????????????????????????????????????????????????? | | ?????????????????????????????????????????????????? | | ?????????????????????????????????????????????????? | | ?????????????????????????????????????????????????? | | ?????????????????????????????????????????????????? | | ?????????????????????????????????????????????????? | | ?????????????????????????????????????????????????? | | ?????????????????????????????????????????????????? | | ?????????????????????????????????????????????????? | | ?????????????????????????????????????????????????? | | ?????????????????????????????????????????????????? | | ?????????????????????????????????????????????????? | | ?????????????????????????????????????????????????? | | ?????????????????????????########????????????????? | | ???????????????????????? #????????????????? | | ???????????????????????# #????????????????? | | ???????????????????????# "" #????????????????? | | ???????????????????????#""" #????????????????? | | ???????????????????????#"R #????????????????? | | ???????????????????????#""" #????????????????? | | ???????????????????????#""" #????????????????? | | ???????????????????????+ @k #????????????????? | | ???????????????????????# c #????????????????? | | ########???????????#########/##########??????????? | | =!!#???????????#! ! # # = #??????????? | | ! !!#????######## #??????????? | | =!!#????#]]] ## #??????????? | | #????#]]] ## !! # "" #??????????? | | #"######????#]]] ## !! """" #??????????? | | #????????? ?###### """" ????????????? | | ########## ??????# "" #??????????? | | / H #? ???????# #??????????? | | ### T"" #? ???????#### # #??????????? | | #?# """" ###+############ ##########??????????? | | ###?# """" + = #???????????????????? | | #???# """ ### #???????????????????? | | #???# #?# #???????????????????? | | #???########?# #???????????????????? | | ############## #???????????????????? | | #???????????????????? | | #???????????????????? | | ##################### #???????????????????? | | # #??????????? #???????????????????? | | / #??????????? #???????????????????? | | # """" #??????????? #???????????????????? | | + """" ############ #???????????????????? | +----------------------------------------------------+ Best States ------------- Heat Dissipation 68 Coolant Potential 65 Energy Generation 25 Energy Capacity 300 Matter Stores 300 Matter Capacity 300 Sight Range 16 Robot Scan Range 16 Terrain Scan Range 20 Terrain Scan Density 10 Cloak Strength 2 Armor Coverage 225 Resistance: KI 25 Evasion (%) 73 Targeting Accuracy 16 Target Analysis 6 Recoil Reduction 5 Offensive Hacking 10 Defensive Hacking 12 Item Schematics ----------------- Cesium-ion Thruster | -7/Factory | Scanalyzed Arm. Wheel | -7/Factory | Scanalyzed Nuclear Core | -7/Factory | Scanalyzed Adv. Treads | -7/Factory | Scanalyzed Imp. Sensor Array | -7/Factory | Scanalyzed Robot Schematics ------------------ None Fabricated ------------ Adv. Treads | x2 | -6/Factory M-30 Cleanser | x1 | -4/Factory | Preloaded Imp. Sensor Array | x2 | -2/Research Repaired ---------- Carbon-fiber Leg | 27% | -6/Factory | Broken Alien Tech Used ----------------- None Achievements -------------- My Command Is Your Wish Challenges ------------ None Game ------ Seed ThrusterExpertConstruct Manual? 0 Play Time 02:13:07 Cumulative 49.0 hours Start 2025.07.16 @ 15:35:27 End 2025.07.16 @ 19:12:47 Sessions 3 Manual Loads 0 Difficulty Rogue Special Mode None Game No. 96 Rogue 96 Adventurer 0 Explorer 0 Win Type - Total 0 Types 0/0/0/0/0/0/0/0/0/0 Lore% 20 Gallery% 35 Achievement% 28 Wizard Run 0 Options --------- Layout 1 ASCII 0 Keyboard 0 Movement Arrows Keybinds 0 Fullscreen 2 Font 24/Smallcaps Map View 50x35 Zoom Use 0% Tactical HUD 1 Map Filters NONE Filters NONE Steam 1 RUN: 1dbb674e-d666-4b66-9702-557037268718